bitfinex/quotes_BTCUSD_20250614
["timestamp","ask_amount","ask_price","bid_price","bid_amount"]
[1749890323598,0.55476069,105100.0,105090.0,0.57730301]
[1749890324048,0.55476069,105100.0,105090.0,0.55946071]
[1749890324267,0.55476069,105100.0,105090.0,0.57730353]
[1749890324479,0.55476069,105100.0,105090.0,0.5168587]
[1749890325590,0.55476069,105100.0,105090.0,0.5168586]
[1749890326244,0.55476069,105100.0,105090.0,0.49901588]
[1749890326490,0.55476069,105100.0,105090.0,0.5168586]
[1749890327134,0.55476069,105100.0,105090.0,0.49901588]
[1749890327365,0.55476069,105100.0,105090.0,0.5168586]
[1749890327573,0.55476069,105100.0,105090.0,0.49901588]
[1749890327780,0.55476069,105100.0,105090.0,0.5168586]
[1749890328164,0.55476069,105100.0,105090.0,0.49901588]
[1749890328376,0.55476069,105100.0,105090.0,0.5168586]
[1749890328594,0.55476069,105100.0,105090.0,0.61300782]
[1749890329492,0.55476069,105100.0,105090.0,0.5951651]
[1749890329708,0.55476069,105100.0,105090.0,0.61300782]
[1749890329917,0.55476069,105100.0,105090.0,0.5951651]
[1749890330394,0.00013634,105100.0,105090.0,0.62990782]
[1749890330631,0.00013634,105100.0,105090.0,1.16668945]
[1749890331049,0.00013634,105100.0,105090.0,1.18453195]
[1749890331481,0.00013634,105100.0,105090.0,1.16668945]
[1749890331697,0.00013634,105100.0,105090.0,1.18453168]
[1749890331928,0.00013634,105100.0,105090.0,1.18053154]
[1749890332357,0.00013634,105100.0,105090.0,1.17768945]
[1749890332567,0.00013634,105100.0,105090.0,1.21007307]
[1749890332999,0.00013634,105100.0,105090.0,1.2100729]
[1749890333228,0.00013634,105100.0,105090.0,1.1922303]
[1749890333439,0.00013634,105100.0,105090.0,1.21007282]
[1749890333647,0.00013634,105100.0,105090.0,1.1922303]
[1749890333854,0.00013634,105100.0,105090.0,1.21007282]
[1749890334067,0.00013634,105100.0,105090.0,1.1922303]
[1749890334272,0.00013634,105100.0,105090.0,1.21007282]
[1749890334504,0.00013634,105100.0,105090.0,1.1922303]
[1749890334688,0.00013634,105100.0,105090.0,1.21007282]
[1749890335109,0.00013634,105100.0,105090.0,1.1922303]
[1749890335338,0.00013634,105100.0,105090.0,1.21007282]
[1749890335546,0.00013634,105100.0,105090.0,1.1922303]
[1749890335763,0.00013634,105100.0,105090.0,1.21007282]
[1749890335964,0.00013634,105100.0,105090.0,1.1922303]
[1749890336173,0.00013634,105100.0,105090.0,1.2100725]
[1749890337048,0.00013634,105100.0,105090.0,0.65544817]
[1749890337256,0.00013634,105100.0,105090.0,0.55929895]
[1749890337669,0.00013634,105100.0,105090.0,0.55929896]
[1749890338584,0.00013634,105100.0,105090.0,0.37251588]
[1749890338791,0.55476069,105100.0,105090.0,0.54491814]
[1749890339464,0.55476069,105100.0,105090.0,0.52707588]
[1749890339684,0.55476069,105100.0,105090.0,0.54491815]
[1749890339886,0.55476069,105100.0,105090.0,0.52707588]
[1749890340097,0.55476069,105100.0,105090.0,0.54491815]
[1749890340735,0.55476069,105100.0,105090.0,0.64106737]
[1749890340955,0.00013634,105100.0,105090.0,0.64106737]
[1749890341160,0.00013634,105100.0,105090.0,1.19569172]
[1749890341723,0.00013634,105100.0,105090.0,1.17784945]
[1749890342255,0.00013634,105100.0,105090.0,1.19569172]
[1749890342419,0.00013634,105100.0,105090.0,1.17784945]
[1749890342624,0.00013634,105100.0,105090.0,1.19569179]
[1749890343468,0.00013634,105100.0,105090.0,1.17784945]
[1749890343669,0.00013634,105100.0,105090.0,1.19569179]
[1749890345701,0.00013634,105100.0,105090.0,1.17784945]
[1749890346436,0.00013634,105100.0,105090.0,1.19569179]
[1749890347267,0.00013634,105100.0,105090.0,1.19569211]
[1749890347480,0.00013634,105100.0,105090.0,1.17784945]
[1749890350987,0.00013634,105100.0,105090.0,1.1923903]
[1749890352653,0.00013634,105100.0,105090.0,1.21022907]
[1749890353210,0.00013634,105100.0,105090.0,1.1923903]
[1749890353433,0.00013634,105100.0,105090.0,1.21022907]
[1749890353868,0.00013634,105100.0,105090.0,1.1923903]
[1749890354088,0.00013634,105100.0,105090.0,1.21022907]
[1749890354366,0.00013634,105100.0,105090.0,1.21022906]
[1749890354845,0.00013634,105100.0,105090.0,1.1923903]
[1749890355061,0.00013634,105100.0,105090.0,1.21022905]
[1749890355277,0.00013634,105100.0,105090.0,1.21022904]
[1749890355717,0.00013634,105100.0,105090.0,1.1923903]
[1749890356134,0.00013634,105100.0,105090.0,1.21022903]
[1749890356337,0.00013634,105100.0,105090.0,1.21022904]
[1749890356543,0.00013634,105100.0,105090.0,1.21022897]
[1749890356889,0.00013634,105100.0,105090.0,1.1923903]
[1749890357390,0.00013634,105100.0,105090.0,1.21022887]
[1749890357801,0.00013634,105100.0,105090.0,1.1923903]
[1749890358125,0.00013634,105100.0,105090.0,1.21022887]
[1749890358326,0.00013634,105100.0,105090.0,1.1923903]
[1749890359337,0.00013634,105100.0,105090.0,1.21022887]
[1749890359741,0.00013634,105100.0,105090.0,1.1923903]
[1749890360144,0.00013634,105100.0,105090.0,1.21022887]
[1749890362741,0.00013634,105100.0,105090.0,1.1923903]
[1749890362944,0.00013634,105100.0,105090.0,0.52009452]
[1749890363152,0.00013634,105100.0,105090.0,1.11387965]
[1749890363980,0.00013634,105100.0,105090.0,1.09604108]
[1749890364188,0.00013634,105100.0,105090.0,1.11387965]
[1749890364592,0.00013634,105100.0,105090.0,1.09604108]
[1749890364805,0.00013634,105100.0,105090.0,1.11386863]
[1749890365021,0.00013634,105100.0,105090.0,1.1921903]
[1749890365433,0.00013634,105100.0,105090.0,1.21001785]
[1749890365632,0.00013634,105100.0,105090.0,1.1921903]
[1749890365845,0.00013634,105100.0,105090.0,1.21001779]
[1749890366054,0.00013634,105100.0,105090.0,1.1921903]
[1749890366269,0.00013634,105100.0,105090.0,1.21001307]
[1749890366483,0.00013634,105100.0,105090.0,1.1921903]
[1749890366697,0.00013634,105100.0,105090.0,1.20401307]
[1749890366923,0.00013634,105100.0,105090.0,1.21201307]
[1749890367533,0.00013634,105100.0,105090.0,0.50302872]
[1749890367746,0.00013634,105100.0,105090.0,1.11606385]
[1749890368160,0.00013634,105100.0,105090.0,1.08924108]
[1749890368381,0.00013634,105100.0,105090.0,1.10024108]
[1749890368610,0.00013634,105100.0,105090.0,1.11806385]
[1749890368834,0.00013634,105100.0,105090.0,1.21421307]
[1749890369250,0.00013634,105100.0,105090.0,1.1963903]
[1749890369476,0.00013634,105100.0,105090.0,1.10024108]
[1749890369674,0.00013634,105100.0,105090.0,1.11806385]
[1749890369880,0.00013634,105100.0,105090.0,0.4088795]
[1749890370107,0.00013634,105100.0,105090.0,0.5633995]
[1749890370315,0.00013634,105100.0,105090.0,1.10020108]
[1749890370521,0.00013634,105100.0,105090.0,1.11802385]
[1749890371376,0.00013634,105100.0,105090.0,1.10020108]
[1749890371601,0.40162706,105110.0,105100.0,0.21883809]
[1749890371803,0.40162706,105110.0,105100.0,0.48738262]
[1749890372450,0.56982435,105110.0,105100.0,0.48738262]
[1749890372665,0.56982435,105110.0,105100.0,0.46955985]
[1749890372846,0.56982435,105110.0,105100.0,0.48738262]
[1749890373047,0.12060387,105120.0,105110.0,0.21881728]
[1749890373281,0.12060387,105120.0,105110.0,0.31505904]
[1749890373282,0.68474106,105120.0,105110.0,0.31505904]
[1749890373490,0.68474106,105120.0,105110.0,0.33288181]
[1749890374135,0.68474106,105120.0,105110.0,0.31505904]
[1749890374348,0.68474106,105120.0,105110.0,0.33288181]
[1749890374763,0.68474187,105120.0,105110.0,0.31505904]
[1749890374973,0.86548832,105120.0,105110.0,0.30554584]
[1749890375183,0.86548832,105120.0,105110.0,0.33288236]
[1749890375390,0.86548832,105120.0,105110.0,0.34239574]
[1749890375591,0.86548832,105120.0,105110.0,0.32657252]
[1749890375797,0.86548832,105120.0,105110.0,0.34439574]
[1749890376024,0.67522957,105120.0,105110.0,0.32857252]
[1749890376234,0.67522957,105120.0,105110.0,0.33808572]
[1749890376530,0.67522957,105120.0,105110.0,0.35590894]
[1749890376992,0.67522957,105120.0,105110.0,0.33808572]
[1749890377213,0.67522957,105120.0,105110.0,0.35590894]
[1749890378132,0.65826149,105120.0,105110.0,0.35590894]
[1749890378366,0.65826149,105120.0,105110.0,0.33808572]
[1749890378603,0.65826149,105120.0,105110.0,0.35592765]
[1749890379174,0.84852024,105120.0,105110.0,0.34641445]
[1749890380980,0.94466946,105120.0,105110.0,0.32857252]
[1749890381668,0.93515698,105120.0,105110.0,0.32738777]
[1749890382078,0.93515698,105120.0,105110.0,0.33690116]
[1749890382577,0.93515698,105120.0,105110.0,0.32857252]
[1749890383034,0.93515698,105120.0,105110.0,0.34641445]
[1749890383245,0.93515698,105120.0,105110.0,0.33690116]
[1749890383471,0.92285698,105120.0,105110.0,0.34641267]
[1749890383674,0.7230853,105120.0,105110.0,0.34641267]
[1749890383929,0.62693608,105120.0,105110.0,0.35592587]
[1749890385274,0.62693608,105120.0,105110.0,0.33808572]
[1749890385478,0.62693608,105120.0,105110.0,0.35592587]
[1749890385710,0.43128441,105120.0,105110.0,0.33808572]
[1749890385954,0.43128441,105120.0,105110.0,0.35592587]
[1749890386189,0.43128441,105120.0,105110.0,0.33808572]
[1749890386406,0.45030946,105120.0,105110.0,0.37112587]
[1749890386622,0.45982221,105120.0,105110.0,0.37112587]
[1749890386842,0.45982221,105120.0,105110.0,0.35328572]
[1749890387058,0.45982221,105120.0,105110.0,0.37112587]
[1749890388032,0.45982221,105120.0,105110.0,0.35328572]
[1749890388473,0.45982221,105120.0,105110.0,0.37112587]
[1749890388700,0.488646,105120.0,105110.0,0.37112587]
[1749890388919,0.488646,105120.0,105110.0,0.35328572]
[1749890389155,0.488646,105120.0,105110.0,0.37112587]
[1749890390088,0.488646,105120.0,105110.0,0.35328572]
[1749890390307,0.488646,105120.0,105110.0,0.37112587]
[1749890390975,0.47913325,105120.0,105110.0,0.37112587]
[1749890391687,0.47913325,105120.0,105110.0,0.35328572]
[1749890391893,0.47913325,105120.0,105110.0,0.37112587]
[1749890392109,0.47913325,105120.0,105110.0,0.35328572]
[1749890392333,0.488646,105120.0,105110.0,0.35328572]
[1749890393002,0.488646,105120.0,105110.0,0.37112587]
[1749890393231,0.488646,105120.0,105110.0,0.35328572]
[1749890393454,0.488646,105120.0,105110.0,0.37112587]
[1749890393681,0.488646,105120.0,105110.0,0.35328572]
[1749890393912,0.04784884,105120.0,105110.0,0.37112587]
[1749890394133,0.61198594,105120.0,105110.0,0.37112587]
[1749890394855,0.61198594,105120.0,105110.0,0.37112765]
[1749890395088,0.61198594,105120.0,105110.0,0.35328572]
[1749890395328,0.61198594,105120.0,105110.0,0.37112765]
[1749890395774,0.61198594,105120.0,105110.0,0.38732765]
[1749890396545,0.60247319,105120.0,105110.0,0.38732765]
[1749890396787,0.61198522,105120.0,105110.0,0.38732765]
[1749890397624,0.61198522,105120.0,105110.0,0.36948572]
[1749890397852,0.62149797,105120.0,105110.0,0.38732765]
[1749890398080,0.61198522,105120.0,105110.0,0.38732765]
[1749890398291,0.62149788,105120.0,105110.0,0.38732765]
[1749890398495,0.62149788,105120.0,105110.0,0.36948572]
[1749890398706,0.60247265,105120.0,105110.0,0.38732765]
[1749890398913,0.61198522,105120.0,105110.0,0.38732765]
[1749890399151,0.62149797,105120.0,105110.0,0.36948572]
[1749890399350,0.61198522,105120.0,105110.0,0.38732765]
[1749890399562,0.61198522,105120.0,105110.0,0.36948572]
[1749890399772,0.61198522,105120.0,105110.0,0.38732765]
[1749890400816,0.61198531,105120.0,105110.0,0.38732765]
[1749890401697,0.61198531,105120.0,105110.0,0.36948572]
[1749890402162,0.61198531,105120.0,105110.0,0.38732765]
[1749890402614,0.61198531,105120.0,105110.0,0.36948572]
[1749890402839,0.61198522,105120.0,105110.0,0.38732765]
[1749890403109,0.61198513,105120.0,105110.0,0.38732765]
[1749890403340,0.6214977,105120.0,105110.0,0.36948572]
[1749890403562,0.61198504,105120.0,105110.0,0.38732765]
[1749890404222,0.61198504,105120.0,105110.0,0.3873276]
[1749890404712,0.62149761,105120.0,105110.0,0.36948572]
[1749890404954,0.61198504,105120.0,105110.0,0.3873276]
[1749890405191,0.62149761,105120.0,105110.0,0.3873276]
[1749890405420,0.62149761,105120.0,105110.0,0.36948572]
[1749890405624,0.62149761,105120.0,105110.0,0.3873276]
[1749890406870,0.61198504,105120.0,105110.0,0.3873276]
[1749890407315,0.61198504,105120.0,105110.0,0.36948572]
[1749890407538,0.6214977,105120.0,105110.0,0.3873276]
[1749890407765,0.61198504,105120.0,105110.0,0.3873276]
[1749890408222,0.61198504,105120.0,105110.0,0.36948572]
[1749890408428,0.61198504,105120.0,105110.0,0.3873276]
[1749890409104,0.61198504,105120.0,105110.0,0.36948572]
[1749890409330,0.04784821,105120.0,105110.0,0.3873276]
[1749890409565,0.61198504,105120.0,105110.0,0.36948572]
[1749890409786,0.61198504,105120.0,105110.0,0.3873276]
[1749890411379,0.05736069,105120.0,105110.0,0.36948572]
[1749890411601,0.61198504,105120.0,105110.0,0.3873276]
[1749890411824,0.61198495,105120.0,105110.0,0.3873276]
[1749890412068,0.61198495,105120.0,105110.0,0.36948572]
[1749890412291,0.61198495,105120.0,105110.0,0.3873276]
[1749890412982,0.62149752,105120.0,105110.0,0.36948572]
[1749890413238,0.62149752,105120.0,105110.0,0.3873276]
[1749890413472,0.62149752,105120.0,105110.0,0.38732765]
[1749890413949,0.61198495,105120.0,105110.0,0.38732765]
[1749890414387,0.62149752,105120.0,105110.0,0.38732765]
[1749890414566,0.63101009,105120.0,105110.0,0.36948572]
[1749890414828,0.62149743,105120.0,105110.0,0.38732765]
[1749890415312,0.07638574,105120.0,105110.0,0.38732765]
[1749890415521,0.63101009,105120.0,105110.0,0.36948572]
[1749890415734,0.62149743,105120.0,105110.0,0.38732765]
[1749890416383,0.63101009,105120.0,105110.0,0.38732765]
[1749890416790,0.82127019,105120.0,105110.0,0.52266116]
[1749890417005,0.82127019,105120.0,105110.0,0.51433252]
[1749890417215,0.63101144,105120.0,105110.0,0.54168765]
[1749890417422,0.63101144,105120.0,105110.0,0.52384572]
[1749890417624,0.62149842,105120.0,105110.0,0.54168765]
[1749890417837,0.62149842,105120.0,105110.0,0.52384572]
[1749890418045,0.62149842,105120.0,105110.0,0.54168765]
[1749890418301,0.63101126,105120.0,105110.0,0.54168765]
[1749890419751,0.90790684,105120.0,105110.0,0.51433252]
[1749890419969,0.90790684,105120.0,105110.0,0.53217445]
[1749890420410,0.90790684,105120.0,105110.0,0.51433252]
[1749890420635,0.90790684,105120.0,105110.0,0.53217445]
[1749890420913,0.62149887,105120.0,105110.0,0.54168765]
[1749890421941,0.62149887,105120.0,105110.0,0.52384572]
[1749890422199,0.62149887,105120.0,105110.0,0.54168765]
[1749890422842,0.62149887,105120.0,105110.0,0.52384572]
[1749890423264,0.62149887,105120.0,105110.0,0.54168765]
[1749890423471,0.61772418,105120.0,105110.0,0.52384572]
[1749890423685,0.61772418,105120.0,105110.0,0.54168765]
[1749890424104,0.61772418,105120.0,105110.0,0.52384572]
[1749890424538,0.61772418,105120.0,105110.0,0.54168765]
[1749890425222,0.61772418,105120.0,105110.0,0.52384572]
[1749890425851,0.61772418,105120.0,105110.0,0.54168765]
[1749890426910,0.61772418,105120.0,105110.0,0.52384572]
[1749890427108,0.61772418,105120.0,105110.0,0.54168765]
[1749890427317,0.61772418,105120.0,105110.0,0.52384572]
[1749890427522,0.60821134,105120.0,105110.0,0.52384572]
[1749890427967,0.60821134,105120.0,105110.0,0.54168765]
[1749890428318,0.05358699,105120.0,105110.0,0.52384572]
[1749890428613,0.60821134,105120.0,105110.0,0.54168764]
[1749890428748,0.60821134,105120.0,105110.0,0.52384572]
[1749890428943,0.60821134,105120.0,105110.0,0.54168764]
[1749890429432,0.60821134,105120.0,105110.0,0.52384572]
[1749890429848,0.60821134,105120.0,105110.0,0.54168764]
[1749890430257,0.60821134,105120.0,105110.0,0.52384572]
[1749890430483,0.60821134,105120.0,105110.0,0.54168764]
[1749890431306,0.59869859,105120.0,105110.0,0.54168764]
[1749890431752,0.59869859,105120.0,105110.0,0.52384572]
[1749890431960,0.59869859,105120.0,105110.0,0.54168764]
[1749890432169,0.60821134,105120.0,105110.0,0.54168764]
[1749890432581,0.60821134,105120.0,105110.0,0.52384572]
[1749890432781,0.60821134,105120.0,105110.0,0.54168764]
[1749890433397,0.60821134,105120.0,105110.0,0.52384572]
[1749890433613,0.60821134,105120.0,105110.0,0.54168764]
[1749890434269,0.60821134,105120.0,105110.0,0.52384572]
[1749890434458,0.60821134,105120.0,105110.0,0.54168764]
[1749890434698,0.60821134,105120.0,105110.0,0.54168765]
[1749890434935,0.60821134,105120.0,105110.0,0.52384572]
[1749890435159,0.60821134,105120.0,105110.0,0.54168765]
[1749890435396,0.79847009,105120.0,105110.0,0.52266116]
[1749890435606,0.60821134,105120.0,105110.0,0.53217436]
[1749890435848,0.61772418,105120.0,105110.0,0.53217436]
[1749890436360,0.60821134,105120.0,105110.0,0.51433243]
[1749890436806,0.60821134,105120.0,105110.0,0.53217436]
[1749890437022,0.60821134,105120.0,105110.0,0.51433243]
[1749890437717,0.05358699,105120.0,105110.0,0.51433243]
[1749890437718,0.60821134,105120.0,105110.0,0.53217436]
[1749890437948,0.60821134,105120.0,105110.0,0.51433243]
[1749890438400,0.80798293,105120.0,105110.0,0.53217445]
[1749890438642,0.61772418,105120.0,105110.0,0.54168765]
[1749890439098,0.61772418,105120.0,105110.0,0.52384572]
[1749890439329,0.61772418,105120.0,105110.0,0.54168765]
[1749890440010,0.06309983,105120.0,105110.0,0.54168765]
[1749890440269,0.61772418,105120.0,105110.0,0.54168765]
[1749890441183,0.06309983,105120.0,105110.0,0.54168765]
[1749890441430,0.61772418,105120.0,105110.0,0.54168765]
[1749890441918,0.62723711,105120.0,105110.0,0.54168765]
[1749890442141,0.61772418,105120.0,105110.0,0.54168765]
[1749890442366,0.61772418,105120.0,105110.0,0.52384572]
[1749890442826,0.61772418,105120.0,105110.0,0.54168765]
[1749890443486,0.61772418,105120.0,105110.0,0.52384572]
[1749890443717,0.61772418,105120.0,105110.0,0.54168765]
[1749890444887,0.61772418,105120.0,105110.0,0.52384572]
[1749890445109,0.61772418,105120.0,105110.0,0.54168765]
[1749890445372,0.61772418,105120.0,105110.0,0.52384572]
[1749890445583,0.61772418,105120.0,105110.0,0.54168765]
[1749890446114,0.06309983,105120.0,105110.0,0.54168765]
[1749890446250,0.61772418,105120.0,105110.0,0.54168765]
[1749890447372,0.61772418,105120.0,105110.0,0.52384572]
[1749890447574,0.61772418,105120.0,105110.0,0.5416876]
[1749890447955,0.61772418,105120.0,105110.0,0.52384572]
[1749890448154,0.55462435,105120.0,105110.0,0.5416876]
[1749890448569,0.57364967,105120.0,105110.0,0.5416876]
[1749890448931,0.57364967,105120.0,105110.0,0.52384572]
[1749890449167,0.57364967,105120.0,105110.0,0.5416876]
[1749890449335,0.01902532,105120.0,105110.0,0.5416876]
[1749890449533,0.58316242,105120.0,105110.0,0.5416876]
[1749890450558,0.59267508,105120.0,105110.0,0.5416876]
[1749890450776,0.59276582,105120.0,105110.0,0.5416876]
[1749890450981,0.61686098,105120.0,105110.0,0.5416876]
[1749890451192,0.05272379,105120.0,105110.0,0.52384572]
[1749890451430,0.60734814,105120.0,105110.0,0.5416876]
[1749890451864,0.59783539,105120.0,105110.0,0.5416876]
[1749890452292,0.60734814,105120.0,105110.0,0.5416876]
[1749890452703,0.60734814,105120.0,105110.0,0.52384572]
[1749890452918,0.60734814,105120.0,105110.0,0.5416876]
[1749890453870,0.60734814,105120.0,105110.0,0.52384572]
[1749890454490,0.60734814,105120.0,105110.0,0.5416876]
[1749890455346,0.05272379,105120.0,105110.0,0.5416876]
[1749890455551,0.60734814,105120.0,105110.0,0.52384572]
[1749890455730,0.59783539,105120.0,105110.0,0.5416876]
[1749890455960,0.59783539,105120.0,105110.0,0.52384572]
[1749890456163,0.59783539,105120.0,105110.0,0.5416876]
[1749890456385,0.41616534,105120.0,105110.0,0.5416876]
[1749890456800,0.41616534,105120.0,105110.0,0.54168734]
[1749890457056,0.43519057,105120.0,105110.0,0.5416875]
[1749890457689,0.43519057,105120.0,105110.0,0.54168747]
[1749890458602,0.44470323,105120.0,105110.0,0.54168747]
[1749890459134,0.44470323,105120.0,105110.0,0.52384572]
[1749890459370,0.43519048,105120.0,105110.0,0.54168752]
[1749890459564,0.01902514,105120.0,105110.0,0.54168752]
[1749890459782,0.61257043,105120.0,105110.0,0.54168752]
[1749890459990,0.57364949,105120.0,105110.0,0.54168752]
[1749890460840,0.57364949,105120.0,105110.0,0.52384572]
[1749890461055,0.57364949,105120.0,105110.0,0.54168752]
[1749890461263,0.57364949,105120.0,105110.0,0.52384572]
[1749890461473,0.57364949,105120.0,105110.0,0.54168752]
[1749890462542,0.57364949,105120.0,105110.0,0.52384572]
[1749890462744,0.57364949,105120.0,105110.0,0.54168752]
[1749890462975,0.57364949,105120.0,105110.0,0.5416872]
[1749890463198,0.57364949,105120.0,105110.0,0.54168739]
[1749890463408,0.57364949,105120.0,105110.0,0.54168744]
[1749890463814,0.61267092,105120.0,105110.0,0.52384572]
[1749890464033,0.61267092,105120.0,105110.0,0.54168744]
[1749890464257,0.61267092,105120.0,105110.0,0.52384572]
[1749890464440,0.61267092,105120.0,105110.0,0.54168744]
[1749890464882,0.62218367,105120.0,105110.0,0.52384572]
[1749890465103,0.62218367,105120.0,105110.0,0.54168744]
[1749890465506,0.62218367,105120.0,105110.0,0.52384572]
[1749890465637,0.61267092,105120.0,105110.0,0.54168744]
[1749890465853,0.61267092,105120.0,105110.0,0.52384572]
[1749890466055,0.61267092,105120.0,105110.0,0.54168744]
[1749890466475,0.61267047,105120.0,105110.0,0.54168744]
[1749890466681,0.62218313,105120.0,105110.0,0.54168744]
[1749890467188,0.62218313,105120.0,105110.0,0.54168442]
[1749890467420,0.06755878,105120.0,105110.0,0.54168442]
[1749890467652,0.62218313,105120.0,105110.0,0.52384572]
[1749890467858,0.62218313,105120.0,105110.0,0.54168442]
[1749890468257,0.62218304,105120.0,105110.0,0.54168442]
[1749890468770,0.6316957,105120.0,105110.0,0.54168442]
[1749890469623,0.6316957,105120.0,105110.0,0.52384572]
[1749890470263,0.6316957,105120.0,105110.0,0.54168442]
[1749890470479,0.06755869,105120.0,105110.0,0.54168442]
[1749890470709,0.05804603,105120.0,105110.0,0.52384572]
[1749890470929,0.6031579,105120.0,105110.0,0.54168442]
[1749890471139,0.6126702,105120.0,105110.0,0.54168395]
[1749890471361,0.05804585,105120.0,105110.0,0.541684]
[1749890471576,0.6031579,105120.0,105110.0,0.54168386]
[1749890471785,0.04853355,105120.0,105110.0,0.52384572]
[1749890471998,0.05804585,105120.0,105110.0,0.54168386]
[1749890472238,0.05804585,105120.0,105110.0,0.52384572]
[1749890472446,0.05804585,105120.0,105110.0,0.54168386]
[1749890473006,0.05804585,105120.0,105110.0,0.52384572]
[1749890473221,0.05804585,105120.0,105110.0,0.54168386]
[1749890473627,0.04853355,105120.0,105110.0,0.54168386]
[1749890473902,0.04853355,105120.0,105110.0,0.52384572]
[1749890474117,0.04853355,105120.0,105110.0,0.54168386]
[1749890474365,0.05804585,105120.0,105110.0,0.54168386]
[1749890474838,0.05804585,105120.0,105110.0,0.54168414]
[1749890475064,0.05804585,105120.0,105110.0,0.54168407]
[1749890475420,0.6126702,105120.0,105110.0,0.54168402]
[1749890476096,0.6126702,105120.0,105110.0,0.52384572]
[1749890476528,0.6031579,105120.0,105110.0,0.54168402]
[1749890477372,0.6031579,105120.0,105110.0,0.52384572]
[1749890477699,0.61267011,105120.0,105110.0,0.52384572]
[1749890478110,0.61267011,105120.0,105110.0,0.54168704]
[1749890478313,0.61267011,105120.0,105110.0,0.54168714]
[1749890478514,0.61267011,105120.0,105110.0,0.52384572]
[1749890479105,0.6031579,105120.0,105110.0,0.54168734]
[1749890479309,0.6031579,105120.0,105110.0,0.54168704]
[1749890479516,0.6031579,105120.0,105110.0,0.52384572]
[1749890479725,0.6031579,105120.0,105110.0,0.54168718]
[1749890479932,0.04853355,105120.0,105110.0,0.52384572]
[1749890480075,0.6031579,105120.0,105110.0,0.54168714]
[1749890480282,0.6031579,105120.0,105110.0,0.54168705]
[1749890480484,0.6031579,105120.0,105110.0,0.5416873]
[1749890481112,0.6031579,105120.0,105110.0,0.52384572]
[1749890481327,0.6031579,105120.0,105110.0,0.54168738]
[1749890481525,0.59364578,105120.0,105110.0,0.54168738]
[1749890481733,0.60315799,105120.0,105110.0,0.54168622]
[1749890482009,0.60315799,105120.0,105110.0,0.52384572]
[1749890482443,0.60315799,105120.0,105110.0,0.54168638]
[1749890482705,0.60315799,105120.0,105110.0,0.52384572]
[1749890482883,0.60315799,105120.0,105110.0,0.54168638]
[1749890483095,0.60315799,105120.0,105110.0,0.54168622]
[1749890483302,0.59364578,105120.0,105110.0,0.54168622]
[1749890483510,0.60315799,105120.0,105110.0,0.52384572]
[1749890483869,0.60315799,105120.0,105110.0,0.54168627]
[1749890484091,0.03902143,105120.0,105110.0,0.54168648]
[1749890484305,0.96283999,105130.0,105120.0,0.24939646]
[1749890484526,0.43103373,105130.0,105120.0,0.24939664]
[1749890484755,0.96283999,105130.0,105120.0,0.26723734]
[1749890484988,0.98565808,105130.0,105120.0,0.25890903]
[1749890485633,0.98565808,105130.0,105120.0,0.27674936]
[1749890486070,0.98565808,105130.0,105120.0,0.27674937]
[1749890486284,0.98565808,105130.0,105120.0,0.25890903]
[1749890486503,0.98565808,105130.0,105120.0,0.27674937]
[1749890486727,0.98565808,105130.0,105120.0,0.28626167]
[1749890486945,1.02334723,105130.0,105120.0,0.26842133]
[1749890487217,1.02334723,105130.0,105120.0,0.99021743]
[1749890487218,0.03768915,105130.0,105120.0,0.99021743]
[1749890487440,0.03768915,105130.0,105120.0,0.93712653]
[1749890487656,1.11193573,105140.0,105130.0,0.24937565]
[1749890487865,1.12144649,105140.0,105130.0,0.40369565]
[1749890488070,1.47095743,105140.0,105130.0,0.40369565]
[1749890488283,1.47095743,105140.0,105130.0,0.42153378]
[1749890489816,1.47095743,105140.0,105130.0,0.42153382]
[1749890490272,1.47095743,105140.0,105130.0,0.40369565]
[1749890490477,1.47095743,105140.0,105130.0,0.42153367]
[1749890490890,1.47095743,105140.0,105130.0,0.40369565]
[1749890491081,1.508837,105140.0,105130.0,0.42153382]
[1749890491339,1.508837,105140.0,105130.0,0.40369565]
[1749890491550,1.508837,105140.0,105130.0,0.42153384]
[1749890491765,0.93459703,105140.0,105130.0,0.51768306]
[1749890491965,1.48981539,105140.0,105130.0,0.51768283]
[1749890492176,1.48981539,105140.0,105130.0,0.5176828]
[1749890492384,1.48981539,105140.0,105130.0,0.42153358]
[1749890492590,1.48981539,105140.0,105130.0,0.42153345]
[1749890492591,1.50824288,105140.0,105130.0,0.42153345]
[1749890492798,1.49932624,105140.0,105130.0,0.40369565]
[1749890493008,1.49932624,105140.0,105130.0,0.42153376]
[1749890493441,1.49932624,105140.0,105130.0,0.40369565]
[1749890493652,1.49932624,105140.0,105130.0,0.42153371]
[1749890493872,1.49932624,105140.0,105130.0,0.4215337]
[1749890494076,1.49932624,105140.0,105130.0,0.40369565]
[1749890494704,1.49932624,105140.0,105130.0,0.42153376]
[1749890494909,1.49932624,105140.0,105130.0,0.42153379]
[1749890495115,1.49932624,105140.0,105130.0,0.40369565]
[1749890495533,1.50883718,105140.0,105130.0,0.40369565]
[1749890495741,1.50883718,105140.0,105130.0,0.42153378]
[1749890495944,1.50883718,105140.0,105130.0,0.42153379]
[1749890496565,1.50883718,105140.0,105130.0,0.42149379]
[1749890497191,1.50883718,105140.0,105130.0,0.40365565]
[1749890497609,1.50883718,105140.0,105130.0,0.42149462]
[1749890497818,1.49932624,105140.0,105130.0,0.40365565]
[1749890498022,1.51775429,105140.0,105130.0,0.40365565]
[1749890498228,1.51775426,105140.0,105130.0,0.42149467]
[1749890498438,1.50883718,105140.0,105130.0,0.42149482]
[1749890498650,1.51775425,105140.0,105130.0,0.40365565]
[1749890498854,1.51775425,105140.0,105130.0,0.42149482]
[1749890499064,1.50883718,105140.0,105130.0,0.42149482]
[1749890499275,1.50883718,105140.0,105130.0,0.40365565]
[1749890499504,0.94470189,105140.0,105130.0,0.42144342]
[1749890499748,0.87648997,105140.0,105130.0,0.51768518]
[1749890499971,1.43111432,105140.0,105130.0,0.51768513]
[1749890500199,1.4406249,105140.0,105130.0,0.51768495]
[1749890500413,0.87648988,105140.0,105130.0,0.51768489]
[1749890500620,1.09111423,105140.0,105130.0,0.51768431]
[1749890500826,1.09111423,105140.0,105130.0,0.49989741]
[1749890501683,1.09111423,105140.0,105130.0,0.50189741]
[1749890502947,1.09111423,105140.0,105130.0,0.50389741]
[1749890503591,1.09111423,105140.0,105130.0,0.60004663]
[1749890503818,1.10062472,105140.0,105130.0,0.60004663]
[1749890504020,1.09111423,105140.0,105130.0,0.60004663]
[1749890504424,1.10062463,105140.0,105130.0,0.60004663]
[1749890505687,1.09111423,105140.0,105130.0,0.60004663]
[1749890505909,1.10062463,105140.0,105130.0,0.60004663]
[1749890506147,1.09111423,105140.0,105130.0,0.60004663]
[1749890506337,1.10062472,105140.0,105130.0,0.60004663]
[1749890506484,1.08160392,105140.0,105130.0,0.60004663]
[1749890506709,1.09111441,105140.0,105130.0,0.60004663]
[1749890507116,0.52697957,105140.0,105130.0,0.60004663]
[1749890507311,0.52697957,105140.0,105130.0,0.50389741]
[1749890507546,1.08160392,105140.0,105130.0,0.50389741]
[1749890507756,0.52697957,105140.0,105130.0,0.50389741]
[1749890507959,1.08160392,105140.0,105130.0,0.50389741]
[1749890508134,1.09111432,105140.0,105130.0,0.50389741]